[Event "Early-Titled-Tuesday-Blitz-April-23-2024"]
[Site "Chess.com"]
[Date "2024.04.23"]
[Round "5"]
[White "jakopogi"]
[Black "masnyszachistaaa"]
[Result "1-0"]
[WhiteElo "2798"]
[BlackElo "2581"]
[TimeControl "180+1"]
[EndTime "8:58:11 PDT"]
[Termination "jakopogi won by checkmate"]

1. d4 {[%clk 0:02:55]} 1... f5 {[%clk 0:02:50.1]} 2. c4 {[%clk 0:02:53.2]} 2...
Nf6 {[%clk 0:02:50.2]} 3. Nc3 {[%clk 0:02:50.8]} 3... d6 {[%clk 0:02:50.1]} 4.
Bg5 {[%clk 0:02:40.9]} 4... Nbd7 {[%clk 0:02:45.8]} 5. e3 {[%clk 0:02:39.8]}
5... g6 {[%clk 0:02:43.9]} 6. Bd3 {[%clk 0:02:34.8]} 6... Bg7 {[%clk 0:02:41.6]}
7. Nge2 {[%clk 0:02:34.8]} 7... O-O {[%clk 0:02:40.6]} 8. Nf4 {[%clk 0:02:30.1]}
8... Nb8 {[%clk 0:02:19.9]} 9. h4 {[%clk 0:02:11.7]} 9... e5 {[%clk 0:02:16.5]}
10. Nfd5 {[%clk 0:02:06.3]} 10... c6 {[%clk 0:02:11.1]} 11. Nxf6+ {[%clk
0:01:56.4]} 11... Bxf6 {[%clk 0:02:12]} 12. Bh6 {[%clk 0:01:49.9]} 12... exd4
{[%clk 0:02:01.2]} 13. Bxf8 {[%clk 0:01:36.6]} 13... dxc3 {[%clk 0:02:01]} 14.
Bh6 {[%clk 0:01:36.9]} 14... cxb2 {[%clk 0:02:00.1]} 15. Rb1 {[%clk 0:01:37.5]}
15... Na6 {[%clk 0:01:49.9]} 16. h5 {[%clk 0:01:31.8]} 16... Nc5 {[%clk
0:01:36]} 17. hxg6 {[%clk 0:01:27.5]} 17... hxg6 {[%clk 0:01:36.9]} 18. Bf4
{[%clk 0:01:25.3]} 18... Be6 {[%clk 0:01:33.8]} 19. g4 {[%clk 0:00:21.4]} 19...
Qd7 {[%clk 0:01:11.8]} 20. Bc2 {[%clk 0:00:09.9]} 20... Bxc4 {[%clk 0:00:55.6]}
21. gxf5 {[%clk 0:00:09.4]} 21... Bc3+ {[%clk 0:00:55.2]} 22. Qd2 {[%clk
0:00:08]} 22... Bxd2+ {[%clk 0:00:54.8]} 23. Kxd2 {[%clk 0:00:08.9]} 23... gxf5
{[%clk 0:00:40.2]} 24. Rbg1+ {[%clk 0:00:08.1]} 24... Kf8 {[%clk 0:00:33.9]} 25.
Rh8+ {[%clk 0:00:07.6]} 25... Ke7 {[%clk 0:00:31.3]} 26. Rg7+ {[%clk 0:00:06.1]}
26... Bf7 {[%clk 0:00:28.8]} 27. Rxa8 {[%clk 0:00:05]} 27... Qe6 {[%clk
0:00:22.2]} 28. Bg5+ {[%clk 0:00:03]} 28... Kd7 {[%clk 0:00:22.2]} 29. Rf8
{[%clk 0:00:03.1]} 29... Qd5+ {[%clk 0:00:20.3]} 30. Kc3 {[%clk 0:00:03.6]}
30... Na4+ {[%clk 0:00:11.1]} 31. Bxa4 {[%clk 0:00:03]} 31... b1=Q {[%clk
0:00:07.1]} 32. Rgxf7+ {[%clk 0:00:01.5]} 32... Qxf7 {[%clk 0:00:04.4]} 33.
Rxf7+ {[%clk 0:00:02.4]} 33... Kc8 {[%clk 0:00:02.5]} 34. Bb3 {[%clk 0:00:03]}
34... Qc1+ {[%clk 0:00:02.4]} 35. Kd3 {[%clk 0:00:03.6]} 35... Qf1+ {[%clk
0:00:02]} 36. Kd2 {[%clk 0:00:03.7]} 36... Qxf2+ {[%clk 0:00:02.2]} 37. Kc3
{[%clk 0:00:04.2]} 37... Qe1+ {[%clk 0:00:01.1]} 38. Kb2 {[%clk 0:00:04.9]}
38... Qd2+ {[%clk 0:00:01.2]} 39. Bc2 {[%clk 0:00:05.3]} 39... Qe1 {[%clk
0:00:01.9]} 40. Bxf5+ {[%clk 0:00:05]} 40... Kb8 {[%clk 0:00:02.1]} 41. Rf8+
{[%clk 0:00:05.9]} 41... Kc7 {[%clk 0:00:02]} 42. Bd8+ {[%clk 0:00:06.6]} 42...
Kb8 {[%clk 0:00:01.8]} 43. Bb6# {[%clk 0:00:07.5]} 1-0

[Event "Early-Titled-Tuesday-Blitz-April-23-2024"]
[Site "Chess.com"]
[Date "2024.04.23"]
[Round "5"]
[White "Ural_bogatyr"]
[Black "GMAkobianSTL"]
[Result "0-1"]
[WhiteElo "2571"]
[BlackElo "2812"]
[TimeControl "180+1"]
[EndTime "8:58:12 PDT"]
[Termination "GMAkobianSTL won by resignation"]

1. e4 {[%clk 0:03:00.9]} 1... d6 {[%clk 0:02:57.3]} 2. d4 {[%clk 0:02:59.4]}
2... Nf6 {[%clk 0:02:57.2]} 3. Nc3 {[%clk 0:02:59.4]} 3... c6 {[%clk 0:02:57.4]}
4. a4 {[%clk 0:02:58.2]} 4... e5 {[%clk 0:02:55.9]} 5. Nf3 {[%clk 0:02:55.7]}
5... Qc7 {[%clk 0:02:55.7]} 6. h3 {[%clk 0:02:49.1]} 6... Be7 {[%clk 0:02:55.2]}
7. Bc4 {[%clk 0:02:43.7]} 7... O-O {[%clk 0:02:54.7]} 8. O-O {[%clk 0:02:43.6]}
8... Nbd7 {[%clk 0:02:53.6]} 9. a5 {[%clk 0:02:42.4]} 9... Rb8 {[%clk
0:02:52.7]} 10. Be3 {[%clk 0:02:27.9]} 10... b5 {[%clk 0:02:51.7]} 11. axb6
{[%clk 0:02:27.4]} 11... axb6 {[%clk 0:02:51.5]} 12. d5 {[%clk 0:02:24.3]} 12...
b5 {[%clk 0:02:51.2]} 13. dxc6 {[%clk 0:02:24.4]} 13... bxc4 {[%clk 0:02:50.5]}
14. cxd7 {[%clk 0:02:24.6]} 14... Bxd7 {[%clk 0:02:50.4]} 15. Ra7 {[%clk
0:02:23.5]} 15... Rb7 {[%clk 0:02:50.1]} 16. Qa1 {[%clk 0:01:47.4]} 16... Rfb8
{[%clk 0:02:35.3]} 17. Rb1 {[%clk 0:01:18]} 17... h6 {[%clk 0:02:28.1]} 18. b4
{[%clk 0:01:05.8]} 18... cxb3 {[%clk 0:02:24]} 19. Rxb3 {[%clk 0:01:05.2]} 19...
Rxa7 {[%clk 0:02:23.7]} 20. Qxa7 {[%clk 0:00:50.8]} 20... Qxa7 {[%clk
0:02:19.1]} 21. Bxa7 {[%clk 0:00:51.7]} 21... Rc8 {[%clk 0:02:17.1]} 22. Kf1
{[%clk 0:00:43.9]} 22... Be6 {[%clk 0:02:16.9]} 23. Rb8 {[%clk 0:00:42.6]} 23...
Rxb8 {[%clk 0:02:02]} 24. Bxb8 {[%clk 0:00:43.5]} 24... Kf8 {[%clk 0:02:02.4]}
25. Ke2 {[%clk 0:00:40.5]} 25... Ke8 {[%clk 0:02:00.2]} 26. Kd3 {[%clk
0:00:39.8]} 26... Kd7 {[%clk 0:01:59.5]} 27. Ba7 {[%clk 0:00:36.1]} 27... Nh5
{[%clk 0:01:58.2]} 28. Be3 {[%clk 0:00:33.5]} 28... f5 {[%clk 0:01:57]} 29. exf5
{[%clk 0:00:17.3]} 29... Bxf5+ {[%clk 0:01:55.8]} 30. Kd2 {[%clk 0:00:17.6]}
30... Nf6 {[%clk 0:01:55.3]} 31. Ba7 {[%clk 0:00:14.3]} 31... Ke6 {[%clk
0:01:52.4]} 32. Ne1 {[%clk 0:00:12.6]} 32... d5 {[%clk 0:01:51.6]} 33. Nd3
{[%clk 0:00:12.8]} 33... d4 {[%clk 0:01:47.3]} 34. Nd1 {[%clk 0:00:12.6]} 34...
Nd5 {[%clk 0:01:26.4]} 35. f3 {[%clk 0:00:07.9]} 35... Bg5+ {[%clk 0:01:20.6]}
36. Ke2 {[%clk 0:00:06.8]} 36... Bxd3+ {[%clk 0:01:20.8]} 37. Kxd3 {[%clk
0:00:05.9]} 37... Nf4+ {[%clk 0:01:20.4]} 38. Ke4 {[%clk 0:00:06.2]} 38... Nxg2
{[%clk 0:01:20.6]} 39. Nf2 {[%clk 0:00:05.9]} 39... Nf4 {[%clk 0:01:16.1]} 40.
Ng4 {[%clk 0:00:05.2]} 40... Nxh3 {[%clk 0:01:15.5]} 41. Nxe5 {[%clk 0:00:05.3]}
41... Bf6 {[%clk 0:01:07.4]} 42. Bxd4 {[%clk 0:00:04.5]} 42... Ng5+ {[%clk
0:01:07.3]} 43. Kf4 {[%clk 0:00:03.9]} 43... Kd5 {[%clk 0:01:06.3]} 44. c3
{[%clk 0:00:03.6]} 44... Ne6+ {[%clk 0:00:48.3]} 45. Kf5 {[%clk 0:00:03.4]}
45... Nxd4+ {[%clk 0:00:43.4]} 46. cxd4 {[%clk 0:00:04.3]} 46... h5 {[%clk
0:00:42.5]} 47. Nd3 {[%clk 0:00:03]} 47... Kxd4 {[%clk 0:00:39.3]} 48. Nf4
{[%clk 0:00:03.6]} 48... h4 {[%clk 0:00:39.5]} 49. Kg4 {[%clk 0:00:03.8]} 49...
Ke3 {[%clk 0:00:38.6]} 50. Nh5 {[%clk 0:00:04.3]} 50... Kf2 {[%clk 0:00:35.8]}
51. f4 {[%clk 0:00:04]} 51... Kg2 {[%clk 0:00:35.3]} 52. Nxf6 {[%clk 0:00:04.2]}
52... gxf6 {[%clk 0:00:35.3]} 53. Kxh4 {[%clk 0:00:04.1]} 53... Kf3 {[%clk
0:00:35.6]} 54. f5 {[%clk 0:00:03.7]} 54... Kf4 {[%clk 0:00:35.9]} 55. Kh3
{[%clk 0:00:03.6]} 55... Kxf5 {[%clk 0:00:36.2]} 56. Kg3 {[%clk 0:00:03.7]}
56... Ke4 {[%clk 0:00:36.4]} 57. Kg4 {[%clk 0:00:03.7]} 57... f5+ {[%clk
0:00:36.2]} 0-1

[Event "Early-Titled-Tuesday-Blitz-April-23-2024"]
[Site "Chess.com"]
[Date "2024.04.23"]
[Round "5"]
[White "Grischuk"]
[Black "ViIIagra"]
[Result "1-0"]
[WhiteElo "3085"]
[BlackElo "2928"]
[TimeControl "180+1"]
[EndTime "8:58:13 PDT"]
[Termination "Grischuk won on time"]

1. d4 {[%clk 0:03:00.9]} 1... Nf6 {[%clk 0:02:50.3]} 2. c4 {[%clk 0:03:01]} 2...
g6 {[%clk 0:02:51.1]} 3. g3 {[%clk 0:03:00.3]} 3... Bg7 {[%clk 0:02:47.1]} 4.
Bg2 {[%clk 0:03:00.2]} 4... d6 {[%clk 0:02:47.9]} 5. Nc3 {[%clk 0:03:00.3]} 5...
O-O {[%clk 0:02:47.2]} 6. Nf3 {[%clk 0:03:00.3]} 6... Bf5 {[%clk 0:02:47.9]} 7.
Nh4 {[%clk 0:02:59.2]} 7... Bc8 {[%clk 0:02:47]} 8. Nf3 {[%clk 0:02:54.3]} 8...
Bf5 {[%clk 0:02:46.7]} 9. Nh4 {[%clk 0:02:30.9]} 9... Bc8 {[%clk 0:02:46.2]} 10.
O-O {[%clk 0:02:31.6]} 10... e5 {[%clk 0:02:36.8]} 11. Nf3 {[%clk 0:02:28]}
11... Nc6 {[%clk 0:02:35.6]} 12. d5 {[%clk 0:02:26]} 12... Nb8 {[%clk
0:02:34.7]} 13. e4 {[%clk 0:02:24.9]} 13... a5 {[%clk 0:02:34.6]} 14. Rb1 {[%clk
0:02:11.1]} 14... Na6 {[%clk 0:02:25.5]} 15. b3 {[%clk 0:02:08]} 15... Nc5
{[%clk 0:02:15.4]} 16. Re1 {[%clk 0:02:08.6]} 16... c6 {[%clk 0:02:08]} 17. dxc6
{[%clk 0:02:00.4]} 17... bxc6 {[%clk 0:02:06.8]} 18. Ba3 {[%clk 0:02:00.4]}
18... Qe7 {[%clk 0:01:48.8]} 19. Qd2 {[%clk 0:01:54.1]} 19... Bg4 {[%clk
0:01:45.1]} 20. h3 {[%clk 0:01:42.9]} 20... Bxf3 {[%clk 0:01:45.1]} 21. Bxf3
{[%clk 0:01:43.8]} 21... Rfd8 {[%clk 0:01:45.3]} 22. Red1 {[%clk 0:01:25.3]}
22... Bf8 {[%clk 0:01:31.1]} 23. Bg2 {[%clk 0:01:13.2]} 23... Ne6 {[%clk
0:01:31.1]} 24. Ne2 {[%clk 0:00:46.7]} 24... c5 {[%clk 0:01:28.9]} 25. Nc3
{[%clk 0:00:31.9]} 25... Nd4 {[%clk 0:01:28.8]} 26. Qd3 {[%clk 0:00:32.3]} 26...
Bh6 {[%clk 0:01:26.7]} 27. Bb2 {[%clk 0:00:27.2]} 27... Bg5 {[%clk 0:01:07.2]}
28. Nb5 {[%clk 0:00:25.5]} 28... h5 {[%clk 0:01:05]} 29. h4 {[%clk 0:00:25.7]}
29... Bh6 {[%clk 0:01:04.3]} 30. a4 {[%clk 0:00:25]} 30... Ng4 {[%clk
0:00:49.9]} 31. Bc3 {[%clk 0:00:23.9]} 31... Rd7 {[%clk 0:00:29]} 32. Re1 {[%clk
0:00:20.1]} 32... Kh7 {[%clk 0:00:18.6]} 33. f3 {[%clk 0:00:19.1]} 33... Nf6
{[%clk 0:00:17.8]} 34. Bh3 {[%clk 0:00:19.7]} 34... Rdd8 {[%clk 0:00:14.1]} 35.
Kh2 {[%clk 0:00:19.3]} 35... Nd7 {[%clk 0:00:13.6]} 36. Nc7 {[%clk 0:00:15.4]}
36... Nb6 {[%clk 0:00:04]} 37. Nxa8 {[%clk 0:00:15.2]} 37... Rxa8 {[%clk
0:00:04.9]} 38. Rb2 {[%clk 0:00:14.8]} 38... Nd7 {[%clk 0:00:04.7]} 39. Rf1
{[%clk 0:00:11.7]} 39... Nb8 {[%clk 0:00:04.8]} 40. f4 {[%clk 0:00:09.8]} 40...
Nbc6 {[%clk 0:00:05.3]} 41. f5 {[%clk 0:00:10]} 41... Rb8 {[%clk 0:00:05.8]} 42.
f6 {[%clk 0:00:08.2]} 42... Qd8 {[%clk 0:00:05.6]} 43. Be1 {[%clk 0:00:07.5]}
43... Qb6 {[%clk 0:00:05.2]} 44. Kg2 {[%clk 0:00:05.8]} 44... Nxb3 {[%clk
0:00:05.5]} 45. Bf2 {[%clk 0:00:03.9]} 45... Ncd4 {[%clk 0:00:02.1]} 46. Rfb1
{[%clk 0:00:04]} 46... Qc6 {[%clk 0:00:02.6]} 47. Bxd4 {[%clk 0:00:03.9]} 47...
cxd4 {[%clk 0:00:01.5]} 48. Rxb3 {[%clk 0:00:03.8]} 1-0

[Event "Early-Titled-Tuesday-Blitz-April-23-2024"]
[Site "Chess.com"]
[Date "2024.04.23"]
[Round "5"]
[White "Navyblue1"]
[Black "KVAIDAN"]
[Result "1-0"]
[WhiteElo "2244"]
[BlackElo "2356"]
[TimeControl "180+1"]
[EndTime "8:58:16 PDT"]
[Termination "Navyblue1 won by resignation"]

1. d4 {[%clk 0:03:00.9]} 1... e6 {[%clk 0:02:59.2]} 2. c4 {[%clk 0:02:52]} 2...
f5 {[%clk 0:02:59.4]} 3. Nc3 {[%clk 0:02:48.6]} 3... Nf6 {[%clk 0:02:59.7]} 4.
g3 {[%clk 0:02:48]} 4... Be7 {[%clk 0:02:59]} 5. Bg2 {[%clk 0:02:48.5]} 5... O-O
{[%clk 0:02:59.1]} 6. Nf3 {[%clk 0:02:48.1]} 6... d6 {[%clk 0:02:59.4]} 7. O-O
{[%clk 0:02:47.3]} 7... a5 {[%clk 0:02:59.9]} 8. Qc2 {[%clk 0:02:41]} 8... Nc6
{[%clk 0:02:59.4]} 9. e4 {[%clk 0:02:38.2]} 9... Nb4 {[%clk 0:02:59.3]} 10. Qe2
{[%clk 0:02:35.4]} 10... fxe4 {[%clk 0:02:58.9]} 11. Nxe4 {[%clk 0:02:34.8]}
11... Nxe4 {[%clk 0:02:59.4]} 12. Qxe4 {[%clk 0:02:34.9]} 12... d5 {[%clk
0:02:59.7]} 13. Qe2 {[%clk 0:02:30.8]} 13... c5 {[%clk 0:02:51.2]} 14. a3 {[%clk
0:02:30.1]} 14... Nc6 {[%clk 0:02:51.3]} 15. dxc5 {[%clk 0:02:26.2]} 15... Bxc5
{[%clk 0:02:50.5]} 16. cxd5 {[%clk 0:02:23.2]} 16... exd5 {[%clk 0:02:50.5]} 17.
Bg5 {[%clk 0:02:19.9]} 17... Qb6 {[%clk 0:02:48]} 18. Rad1 {[%clk 0:02:02.5]}
18... Bg4 {[%clk 0:02:43.7]} 19. Rxd5 {[%clk 0:01:43.1]} 19... Nd4 {[%clk
0:02:43.2]} 20. Rxd4 {[%clk 0:01:40.5]} 20... Bxd4 {[%clk 0:02:43]} 21. Qc4+
{[%clk 0:01:37.9]} 21... Kh8 {[%clk 0:02:34.4]} 22. Qxd4 {[%clk 0:01:32.3]}
22... Qg6 {[%clk 0:02:26.4]} 23. Bf4 {[%clk 0:01:05.8]} 23... Rad8 {[%clk
0:02:24.8]} 24. Qe5 {[%clk 0:00:58.8]} 24... Rde8 {[%clk 0:02:24.7]} 25. Qg5
{[%clk 0:00:46.9]} 25... Bxf3 {[%clk 0:02:11]} 26. Qxg6 {[%clk 0:00:45.9]} 26...
hxg6 {[%clk 0:02:10.4]} 27. Bxf3 {[%clk 0:00:46.5]} 27... g5 {[%clk 0:02:09.9]}
28. Bh5 {[%clk 0:00:35.8]} 28... gxf4 {[%clk 0:02:05.6]} 29. Bxe8 {[%clk
0:00:35]} 29... Rxe8 {[%clk 0:02:05.3]} 30. gxf4 {[%clk 0:00:35.5]} 30... Re2
{[%clk 0:02:05]} 31. Rb1 {[%clk 0:00:34.9]} 31... Kh7 {[%clk 0:02:03.2]} 32. Kg2
{[%clk 0:00:34.7]} 32... Kg6 {[%clk 0:02:03.3]} 33. Kf3 {[%clk 0:00:35]} 33...
Rc2 {[%clk 0:02:03.7]} 34. Rg1+ {[%clk 0:00:28.8]} 34... Kf6 {[%clk 0:02:02.7]}
35. Rg5 {[%clk 0:00:27]} 35... Rxb2 {[%clk 0:02:03]} 36. Rxa5 {[%clk 0:00:26.5]}
36... b5 {[%clk 0:02:01.9]} 37. Ra7 {[%clk 0:00:19.6]} 37... g6 {[%clk
0:01:59.2]} 38. Rb7 {[%clk 0:00:18.5]} 38... Kf5 {[%clk 0:01:57.7]} 39. Rf7+
{[%clk 0:00:18.3]} 39... Ke6 {[%clk 0:01:57.4]} 40. Rb7 {[%clk 0:00:18.4]} 40...
Kf6 {[%clk 0:01:55.7]} 41. Kg4 {[%clk 0:00:16.8]} 41... Rb3 {[%clk 0:01:53.3]}
42. Rb6+ {[%clk 0:00:16.9]} 42... Kf7 {[%clk 0:01:53.3]} 43. Kg5 {[%clk
0:00:17.2]} 43... Rxa3 {[%clk 0:01:51.8]} 44. Rxb5 {[%clk 0:00:17.1]} 44... Ra7
{[%clk 0:01:49.8]} 45. h4 {[%clk 0:00:15.7]} 45... Kg7 {[%clk 0:01:48.1]} 46. h5
{[%clk 0:00:14.4]} 46... gxh5 {[%clk 0:01:41.3]} 47. Kxh5 {[%clk 0:00:14.7]}
47... Kf6 {[%clk 0:01:41.7]} 48. f3 {[%clk 0:00:13.7]} 48... Rh7+ {[%clk
0:01:41.4]} 49. Kg4 {[%clk 0:00:14]} 49... Rh1 {[%clk 0:01:41.1]} 50. Rb6+
{[%clk 0:00:13.2]} 50... Ke7 {[%clk 0:01:41.5]} 51. Kf5 {[%clk 0:00:13.4]} 51...
Rh5+ {[%clk 0:01:41.5]} 52. Ke4 {[%clk 0:00:13]} 52... Ra5 {[%clk 0:01:40.9]}
53. f5 {[%clk 0:00:13]} 53... Kf7 {[%clk 0:01:41.1]} 54. Kf4 {[%clk 0:00:12.6]}
54... Ra1 {[%clk 0:01:40.8]} 55. Kg5 {[%clk 0:00:12.1]} 55... Rg1+ {[%clk
0:01:40.7]} 56. Kf4 {[%clk 0:00:12.8]} 56... Ra1 {[%clk 0:01:39.7]} 57. Rc6
{[%clk 0:00:12.8]} 57... Rb1 {[%clk 0:01:38.7]} 58. Rc7+ {[%clk 0:00:12.8]}
58... Kf6 {[%clk 0:01:38.6]} 59. Rc6+ {[%clk 0:00:13.4]} 59... Kf7 {[%clk
0:01:38.7]} 60. Rd6 {[%clk 0:00:12.7]} 60... Ra1 {[%clk 0:01:37.3]} 61. Ke5
{[%clk 0:00:11.7]} 61... Ra5+ {[%clk 0:01:35.5]} 62. Rd5 {[%clk 0:00:11.4]}
62... Ra7 {[%clk 0:01:35.6]} 63. f6 {[%clk 0:00:11.4]} 63... Rb7 {[%clk
0:01:34.6]} 64. f4 {[%clk 0:00:11.2]} 64... Ra7 {[%clk 0:01:34.7]} 65. Kf5
{[%clk 0:00:10.7]} 65... Rb7 {[%clk 0:01:35]} 66. Re5 {[%clk 0:00:10.7]} 66...
Kf8 {[%clk 0:01:32.6]} 67. Kg6 {[%clk 0:00:10.1]} 67... Ra7 {[%clk 0:01:30.4]}
68. f5 {[%clk 0:00:09.5]} 68... Rb7 {[%clk 0:01:29.6]} 69. Rd5 {[%clk
0:00:08.5]} 69... Rb8 {[%clk 0:01:27]} 70. Rd7 {[%clk 0:00:07.5]} 70... Kg8
{[%clk 0:01:24.9]} 71. f7+ {[%clk 0:00:07]} 71... Kf8 {[%clk 0:01:23.7]} 72. f6
{[%clk 0:00:07]} 72... Ra8 {[%clk 0:01:20.1]} 73. Re7 {[%clk 0:00:07]} 73... Rc8
{[%clk 0:01:17.6]} 74. Re8+ {[%clk 0:00:06.9]} 74... Rxe8 {[%clk 0:01:14.7]} 75.
fxe8=Q+ {[%clk 0:00:07.8]} 75... Kxe8 {[%clk 0:01:15.3]} 76. Kg7 {[%clk
0:00:08.4]} 76... Kd7 {[%clk 0:01:15.1]} 77. f7 {[%clk 0:00:09.2]} 1-0

[Event "Early-Titled-Tuesday-Blitz-April-23-2024"]
[Site "Chess.com"]
[Date "2024.04.23"]
[Round "5"]
[White "amanjazu"]
[Black "Binary010"]
[Result "0-1"]
[WhiteElo "2536"]
[BlackElo "2848"]
[TimeControl "180+1"]
[EndTime "8:58:18 PDT"]
[Termination "Binary010 won by resignation"]

1. d4 {[%clk 0:02:59.8]} 1... Nf6 {[%clk 0:02:59.8]} 2. c4 {[%clk 0:02:59.8]}
2... e6 {[%clk 0:02:59.7]} 3. Nc3 {[%clk 0:03:00.1]} 3... Bb4 {[%clk 0:02:59.5]}
4. Nf3 {[%clk 0:02:48.4]} 4... d5 {[%clk 0:02:57.6]} 5. e3 {[%clk 0:02:48]} 5...
O-O {[%clk 0:02:57.1]} 6. cxd5 {[%clk 0:02:45.4]} 6... exd5 {[%clk 0:02:57]} 7.
Bd3 {[%clk 0:02:45]} 7... Bg4 {[%clk 0:02:42.2]} 8. Rg1 {[%clk 0:02:42.8]} 8...
Re8 {[%clk 0:02:38.7]} 9. h3 {[%clk 0:02:42.4]} 9... Bh5 {[%clk 0:02:36.8]} 10.
Bd2 {[%clk 0:02:39.5]} 10... c5 {[%clk 0:02:35.3]} 11. dxc5 {[%clk 0:02:38.7]}
11... d4 {[%clk 0:02:28.6]} 12. Ne2 {[%clk 0:02:35.5]} 12... Bxd2+ {[%clk
0:02:20.1]} 13. Qxd2 {[%clk 0:02:34.8]} 13... Nc6 {[%clk 0:02:12.8]} 14. Nexd4
{[%clk 0:02:18.7]} 14... Bxf3 {[%clk 0:02:08.1]} 15. Nxf3 {[%clk 0:02:18.6]}
15... Qe7 {[%clk 0:02:07.8]} 16. b4 {[%clk 0:02:09.7]} 16... a5 {[%clk
0:02:06.4]} 17. b5 {[%clk 0:02:01.3]} 17... Nb4 {[%clk 0:02:06.3]} 18. Be2
{[%clk 0:01:30.4]} 18... Ne4 {[%clk 0:01:50]} 19. Qb2 {[%clk 0:01:23.4]} 19...
Nxc5 {[%clk 0:01:27.3]} 20. Rd1 {[%clk 0:01:22.8]} 20... Rad8 {[%clk 0:01:23.2]}
21. Nd4 {[%clk 0:01:22]} 21... Qe4 {[%clk 0:01:17.7]} 22. Qd2 {[%clk 0:00:34.2]}
22... Qh4 {[%clk 0:01:13.3]} 23. g3 {[%clk 0:00:31.9]} 23... Qxh3 {[%clk
0:01:09.3]} 24. Qc1 {[%clk 0:00:19.1]} 24... Rc8 {[%clk 0:00:57.8]} 25. Qb1
{[%clk 0:00:11.7]} 25... Ne4 {[%clk 0:00:46.4]} 26. a3 {[%clk 0:00:06.5]} 26...
Nc3 {[%clk 0:00:43.5]} 27. Qb3 {[%clk 0:00:06.3]} 27... Nxd1 {[%clk 0:00:35.6]}
28. axb4 {[%clk 0:00:06.1]} 28... Nc3 {[%clk 0:00:24.7]} 29. Bf3 {[%clk
0:00:05.6]} 29... a4 {[%clk 0:00:22.5]} 30. Qc2 {[%clk 0:00:05.4]} 30... Qd7
{[%clk 0:00:17.6]} 31. Rh1 {[%clk 0:00:05.4]} 31... g6 {[%clk 0:00:17]} 32. Kf1
{[%clk 0:00:05.5]} 32... Nxb5 {[%clk 0:00:14.9]} 33. Qb2 {[%clk 0:00:05.4]}
33... Nxd4 {[%clk 0:00:13.3]} 34. exd4 {[%clk 0:00:06.3]} 34... Ra8 {[%clk
0:00:08.4]} 35. Qa3 {[%clk 0:00:05.9]} 35... Qxd4 {[%clk 0:00:07.9]} 36. Kg2
{[%clk 0:00:06.4]} 36... Qb6 {[%clk 0:00:05]} 37. Rb1 {[%clk 0:00:06.1]} 37...
h5 {[%clk 0:00:05.3]} 38. b5 {[%clk 0:00:06.1]} 38... Red8 {[%clk 0:00:04.9]}
39. Rb4 {[%clk 0:00:06.6]} 39... Rd2 {[%clk 0:00:04.9]} 40. Be2 {[%clk
0:00:03.1]} 40... Rxe2 {[%clk 0:00:04.5]} 41. Qf3 {[%clk 0:00:03.6]} 41... Re6
{[%clk 0:00:03.7]} 42. g4 {[%clk 0:00:04.5]} 42... Rf6 {[%clk 0:00:03.7]} 43.
Qg3 {[%clk 0:00:04.9]} 43... hxg4 {[%clk 0:00:03.1]} 44. Rxg4 {[%clk 0:00:05.8]}
44... a3 {[%clk 0:00:02.8]} 45. Rh4 {[%clk 0:00:05.3]} 45... Qxf2+ {[%clk
0:00:02.6]} 46. Qxf2 {[%clk 0:00:05.4]} 46... Rxf2+ {[%clk 0:00:03.5]} 47. Kxf2
{[%clk 0:00:06.3]} 47... a2 {[%clk 0:00:04.4]} 48. b6 {[%clk 0:00:06.6]} 48...
a1=Q {[%clk 0:00:04.6]} 0-1

[Event "Early-Titled-Tuesday-Blitz-April-23-2024"]
[Site "Chess.com"]
[Date "2024.04.23"]
[Round "5"]
[White "Jakhongir-Vakhidov"]
[Black "Rakhmanov_Aleksandr"]
[Result "0-1"]
[WhiteElo "2671"]
[BlackElo "2870"]
[TimeControl "180+1"]
[EndTime "8:58:19 PDT"]
[Termination "Rakhmanov_Aleksandr won by resignation"]

1. c4 {[%clk 0:02:56]} 1... e5 {[%clk 0:02:59.4]} 2. Nc3 {[%clk 0:02:55.8]} 2...
Bb4 {[%clk 0:02:57.9]} 3. Nd5 {[%clk 0:02:56.4]} 3... a5 {[%clk 0:02:56.5]} 4.
e3 {[%clk 0:02:55.7]} 4... Nf6 {[%clk 0:02:35.9]} 5. Nf3 {[%clk 0:02:55.6]} 5...
e4 {[%clk 0:02:21.2]} 6. a3 {[%clk 0:02:54.5]} 6... Be7 {[%clk 0:02:02.8]} 7.
Nd4 {[%clk 0:02:52.9]} 7... c6 {[%clk 0:01:50.5]} 8. Nxe7 {[%clk 0:02:18.7]}
8... Qxe7 {[%clk 0:01:50.4]} 9. b3 {[%clk 0:02:16.6]} 9... d5 {[%clk 0:01:39.3]}
10. Bb2 {[%clk 0:02:08.7]} 10... O-O {[%clk 0:01:27.2]} 11. Qc2 {[%clk
0:02:02.2]} 11... dxc4 {[%clk 0:01:07.4]} 12. bxc4 {[%clk 0:01:58]} 12... Na6
{[%clk 0:01:03.5]} 13. Be2 {[%clk 0:01:45.2]} 13... Rd8 {[%clk 0:00:59.3]} 14.
O-O {[%clk 0:01:44]} 14... Nc5 {[%clk 0:00:56.2]} 15. f3 {[%clk 0:01:43]} 15...
exf3 {[%clk 0:00:49]} 16. Bxf3 {[%clk 0:01:32.4]} 16... Ng4 {[%clk 0:00:48.7]}
17. Nf5 {[%clk 0:01:16.1]} 17... Bxf5 {[%clk 0:00:43]} 18. Qxf5 {[%clk 0:01:17]}
18... Rxd2 {[%clk 0:00:19.8]} 19. Bd4 {[%clk 0:01:16.9]} 19... Nxe3 {[%clk
0:00:11]} 20. Qxc5 {[%clk 0:01:05]} 20... Qxc5 {[%clk 0:00:04.8]} 21. Bxc5
{[%clk 0:01:05.9]} 21... Nxf1 {[%clk 0:00:05]} 22. Kxf1 {[%clk 0:01:05.2]} 22...
Rad8 {[%clk 0:00:02.3]} 23. Bb6 {[%clk 0:01:02.6]} 23... Re8 {[%clk 0:00:01.8]}
24. Bxa5 {[%clk 0:01:00.7]} 24... Rc2 {[%clk 0:00:02.5]} 25. Rb1 {[%clk
0:00:56.2]} 25... Rxc4 {[%clk 0:00:02.7]} 26. Rxb7 {[%clk 0:00:55.9]} 26... g5
{[%clk 0:00:02.9]} 27. h3 {[%clk 0:00:52.4]} 27... h6 {[%clk 0:00:01.5]} 28. Kg1
{[%clk 0:00:47.9]} 28... c5 {[%clk 0:00:01.6]} 29. Bd5 {[%clk 0:00:43.6]} 29...
Rf4 {[%clk 0:00:01.2]} 30. Rc7 {[%clk 0:00:37.5]} 30... Rf5 {[%clk 0:00:01.7]}
31. Bc4 {[%clk 0:00:33.2]} 31... h5 {[%clk 0:00:01.5]} 32. Bc3 {[%clk
0:00:20.5]} 32... g4 {[%clk 0:00:01.9]} 33. hxg4 {[%clk 0:00:19.4]} 33... hxg4
{[%clk 0:00:02.8]} 34. Rd7 {[%clk 0:00:18.1]} 34... Rf4 {[%clk 0:00:03.2]} 35.
Bd5 {[%clk 0:00:14.1]} 35... Rf5 {[%clk 0:00:03.3]} 36. a4 {[%clk 0:00:12.6]}
36... Re2 {[%clk 0:00:02.5]} 37. a5 {[%clk 0:00:09.7]} 37... g3 {[%clk
0:00:02.7]} 38. Bf3 {[%clk 0:00:06.6]} 38... Rc2 {[%clk 0:00:03.1]} 39. Bd2
{[%clk 0:00:05.3]} 39... Ra2 {[%clk 0:00:02.6]} 40. Rd8+ {[%clk 0:00:02.6]}
40... Kg7 {[%clk 0:00:02.2]} 41. Rd6 {[%clk 0:00:03.3]} 41... Ra1+ {[%clk
0:00:01.9]} 42. Bc1 {[%clk 0:00:01.2]} 42... Rxc1+ {[%clk 0:00:02.6]} 43. Bd1
{[%clk 0:00:01.8]} 43... Rf4 {[%clk 0:00:03]} 44. a6 {[%clk 0:00:01.1]} 44...
Rd4 {[%clk 0:00:03.4]} 45. Rxd4 {[%clk 0:00:01.4]} 45... cxd4 {[%clk 0:00:04.3]}
46. Kf1 {[%clk 0:00:02.3]} 46... Rxd1+ {[%clk 0:00:04.7]} 47. Ke2 {[%clk
0:00:03.2]} 47... Ra1 {[%clk 0:00:05.6]} 48. a7 {[%clk 0:00:04.1]} 48... Rxa7
{[%clk 0:00:06]} 49. Kd3 {[%clk 0:00:05]} 49... Ra2 {[%clk 0:00:06.8]} 50. Kxd4
{[%clk 0:00:05.9]} 50... Rxg2 {[%clk 0:00:07.5]} 51. Ke4 {[%clk 0:00:06.8]}
51... Rf2 {[%clk 0:00:08.4]} 0-1